fUST/lending_fUST_20240430
["ID","MTS","AMOUNT","RATE_DAILY","PERIOD"]
[324917573,1714415450129,-500.0,0.00043835,30]
[324917574,1714415450138,-501.1423942,0.00043835,30]
[324917575,1714415450148,-500.0,0.00043835,30]
[324917576,1714415450157,-500.0,0.00043835,30]
[324917577,1714415450166,-500.0,0.00043835,30]
[324917578,1714415450175,-938.24,0.00043835,30]
[324917579,1714415450184,-500.0,0.00043835,30]
[324917580,1714415450194,-500.0,0.00043835,2]
[324917581,1714415450203,-500.0,0.00043835,30]
[324917582,1714415450212,-500.0,0.00043835,30]
[324917583,1714415450222,-1020.6,0.00043835,30]
[324917584,1714415450231,-500.0,0.00043835,30]
[324917585,1714415450241,-500.0,0.00043835,30]
[324917586,1714415450250,-500.0,0.00043835,30]
[324917587,1714415450260,-151.0,0.00043835,7]
[324917588,1714415450269,-151.0,0.00043835,7]
[324917589,1714415450278,-511.07980375,0.00043835,30]
[324917590,1714415450288,-500.0,0.00043835,30]
[324917591,1714415450298,-151.0,0.00043835,7]
[324917592,1714415450307,-747.91,0.00043835,30]
[324917593,1714415450317,-288.418844,0.00043835,7]
[324917594,1714415450327,-375.85116075,0.00043835,30]
[324917595,1714415450338,-288.418844,0.00043835,7]
[324917596,1714415450348,-288.418844,0.00043835,7]
[324917597,1714415450358,-500.0,0.00043835,30]
[324917598,1714415450369,-243.421091,0.00043835,7]
[324917599,1714415450508,-500.0,0.00043835,30]
[324917600,1714415450519,-500.0,0.00043835,30]
[324917601,1714415450529,-500.0,0.00043835,30]
[324917602,1714415450539,-288.418844,0.00043835,7]
[324917603,1714415450549,-288.418844,0.00043835,7]
[324917604,1714415450559,-394.87380458,0.00043835,30]
[324917605,1714415450569,-288.41884,0.00043835,7]
[324917606,1714415450578,-543.2249035,0.00043835,2]
[324917607,1714415450588,-658.86,0.00043835,30]
[324917608,1714415450597,-500.0,0.00043835,30]
[324917609,1714415450612,-500.0,0.00043835,30]
[324917610,1714415450622,-500.0,0.00043835,30]
[324917611,1714415450631,-500.0,0.00043835,30]
[324917612,1714415450640,-500.0,0.00043835,30]
[324917613,1714415450650,-500.0,0.00043835,30]
[324917614,1714415450660,-500.0,0.00043835,30]
[324917615,1714415450669,-500.0,0.00043835,30]
[324917616,1714415450678,-500.0,0.00043835,30]
[324917617,1714415450688,-500.0,0.00043835,30]
[324917618,1714415450697,-500.0,0.00043835,30]
[324917619,1714415450706,-500.0,0.00043835,30]
[324917620,1714415450715,-500.0,0.00043835,30]
[324917621,1714415450724,-500.0,0.00043835,30]
[324917622,1714415450734,-592.92,0.00043835,30]
[324917623,1714415450743,-500.0,0.00043835,30]
[324917624,1714415450752,-286.048983,0.00043835,7]
[324917625,1714415450762,-286.048983,0.00043835,7]
[324917626,1714415450771,-286.048983,0.00043835,7]
[324917627,1714415450780,-500.0,0.00043835,30]
[324917628,1714415450790,-286.048983,0.00043835,7]
[324917629,1714415450799,-286.048983,0.00043835,7]
[324917630,1714415450809,-286.048981,0.00043835,7]
[324917631,1714415450818,-500.0,0.00043835,30]
[324917632,1714415450828,-500.0,0.00043835,30]
[324917633,1714415450837,-500.0,0.00043835,30]
[324917634,1714415450846,-500.0,0.00043835,30]
[324917635,1714415450856,-500.0,0.00043835,30]
[324917636,1714415450865,-500.0,0.00043835,30]
[324917637,1714415450874,-706.82,0.00043835,30]
[324917638,1714415450884,-220.30316345,0.00043835,30]
[324917639,1714415450893,-500.0,0.00043835,30]
[324917640,1714415450903,-500.0,0.00043835,30]
[324917641,1714415450912,-518.13411356,0.00043835,30]
[324917642,1714415450921,-500.0,0.00043835,30]
[324917643,1714415450931,-500.0,0.00043835,30]
[324917644,1714415450940,-500.0,0.00043835,30]
[324917645,1714415450949,-500.0,0.00043835,30]
[324917646,1714415450959,-191.171644,0.00043835,7]
[324917647,1714415450968,-191.171644,0.00043835,7]
[324917648,1714415450978,-191.171644,0.00043835,7]
[324917649,1714415450987,-500.0,0.00043835,30]
[324917650,1714415450997,-725.637031,0.00043835,7]
[324917651,1714415451007,-191.171644,0.00043835,7]
[324917652,1714415451016,-500.0,0.00043835,30]
[324917653,1714415451026,-191.171644,0.00043835,7]
[324917654,1714415451035,-191.17165,0.00043835,7]
[324917655,1714415451044,-725.637031,0.00043835,7]
[324917656,1714415451055,-500.0,0.00043835,30]
[324917657,1714415451064,-725.637031,0.00043835,7]
[324917658,1714415451073,-757.514192,0.00043835,7]
[324917659,1714415451083,-725.637031,0.00043835,7]
[324917660,1714415451092,-757.514192,0.00043835,7]
[324917661,1714415451102,-725.637031,0.00043835,7]
[324917662,1714415451111,-500.0,0.00043835,30]
[324917663,1714415451120,-725.637034,0.00043835,7]
[324917664,1714415451129,-715.53,0.00043835,30]
[324917665,1714415451139,-757.514192,0.00043835,7]
[324917666,1714415451148,-500.0,0.00043835,30]
[324917667,1714415451158,-500.0,0.00043835,30]
[324917668,1714415451168,-757.514192,0.00043835,7]
[324917669,1714415451178,-757.514192,0.00043835,7]
[324917670,1714415451187,-500.0,0.00043835,30]
[324917671,1714415451196,-757.514195,0.00043835,7]
[324917672,1714415451206,-500.0,0.00043835,30]
[324917673,1714415451215,-500.0,0.00043835,30]
[324917674,1714415451224,-500.0,0.00043835,30]
[324917675,1714415451233,-500.0,0.00043835,21]
[324917676,1714415451242,-500.0,0.00043835,30]
[324917677,1714415451252,-593.9,0.00043835,30]
[324917678,1714415451261,-500.0,0.00043835,30]
[324917679,1714415451270,-500.0,0.00043835,20]
[324917680,1714415451279,-721.41,0.00043835,30]
[324917681,1714415451288,-615.4,0.00043835,30]
[324917682,1714415451298,-254.98552436,0.00043835,30]
[324917683,1714415451308,-500.20722599,0.00043835,30]
[324917684,1714415451317,-500.0,0.00043835,30]
[324917685,1714415451326,-500.0,0.00043835,30]
[324917686,1714415451336,-500.0,0.00043835,30]
[324917687,1714415451346,-558.35,0.00043835,30]
[324917688,1714415451355,-205.064709,0.00043835,7]
[324917689,1714415451364,-205.064709,0.00043835,7]
[324917690,1714415451373,-1480.22,0.00043835,30]
[324917691,1714415451383,-205.064709,0.00043835,7]
[324917692,1714415451392,-500.0,0.00043835,30]
[324917693,1714415451401,-512.8,0.00043835,30]
[324917694,1714415451411,-205.064709,0.00043835,7]
[324917695,1714415451420,-500.0,0.00043835,30]
[324917696,1714415451430,-205.064709,0.00043835,7]
[324917697,1714415451439,-205.06471,0.00043835,7]
[324917698,1714415451448,-909.32,0.00043835,30]
[324917699,1714415451457,-500.0,0.00043835,30]
[324917700,1714415451466,-500.0,0.00043835,30]
[324917701,1714415451476,-500.0,0.00043835,30]
[324917702,1714415451485,-500.0,0.00043835,30]
[324917703,1714415451494,-151.0,0.00043835,7]
[324917704,1714415451503,-500.0,0.00043835,30]
[324917705,1714415451512,-151.0,0.00043835,7]
[324917706,1714415451522,-151.0,0.00043835,7]
[324917707,1714415451531,-500.0,0.00043835,30]
[324917708,1714415451540,-575.77,0.00043835,30]
[324917709,1714415451549,-500.0,0.00043835,30]
[324917710,1714415451559,-778.11,0.00043835,30]
[324917711,1714415451568,-500.0,0.00043835,30]
[324917712,1714415451577,-500.0,0.00043835,30]
[324917713,1714415451586,-659.07,0.00043835,30]
[324917714,1714415451596,-8600.42,0.00043835,30]
[324917715,1714415451608,-500.0,0.00043835,30]
[324917716,1714415451617,-662.32,0.00043835,30]
[324917717,1714415451627,-500.0,0.00043835,30]
[324917718,1714415451638,-625.23079,0.00043835,7]
[324917719,1714415451651,-625.23079,0.00043835,7]
[324917720,1714415451662,-625.23079,0.00043835,7]
[324917721,1714415451671,-500.0,0.00043835,30]
[324917722,1714415451683,-579.98,0.00043835,30]
[324917723,1714415451694,-625.23079,0.00043835,7]
[324917724,1714415451703,-625.23079,0.00043835,7]
[324917725,1714415451713,-625.230795,0.00043835,7]
[324917726,1714415451723,-500.0,0.00043835,30]
[324917727,1714415451732,-500.0,0.00043835,30]
[324917728,1714415451744,-500.0,0.00043835,30]
[324917729,1714415451757,-500.0,0.00043835,30]
[324917730,1714415451767,-557.73,0.00043835,30]
[324917731,1714415451775,-932.94,0.00043835,30]
[324917732,1714415451785,-500.0,0.00043835,30]
[324917733,1714415451795,-500.0,0.00043835,30]
[324917734,1714415451806,-656.33,0.00043835,30]
[324917735,1714415451815,-507.98,0.00043835,30]
[324917736,1714415451824,-500.0,0.00043835,30]
[324917737,1714415451833,-152.836272,0.00043835,7]
[324917738,1714415451843,-152.836272,0.00043835,7]
[324917739,1714415451852,-709.61,0.00043835,30]
[324917740,1714415451862,-500.0,0.00043835,30]
[324917741,1714415451871,-152.836272,0.00043835,7]
[324917742,1714415451881,-565.05492021,0.00043835,10]
[324917743,1714415451891,-152.836266,0.00043835,7]
[324917744,1714415451900,-500.0,0.00043835,30]
[324917745,1714415451909,-500.0,0.00043835,30]
[324917746,1714415451918,-500.0,0.00043835,30]
[324917747,1714415451927,-518.66,0.00043835,30]
[324917748,1714415451936,-500.0,0.00043835,30]
[324917749,1714415451946,-500.0,0.00043835,30]
[324917750,1714415451955,-406.18904974,0.00043835,30]
[324917751,1714415451964,-500.0,0.00043835,30]
[324917752,1714415451973,-857.29,0.00043835,30]
[324917753,1714415451982,-500.0,0.00043835,30]
[324917754,1714415451991,-500.0,0.00043835,30]
[324917755,1714415452000,-500.0,0.00043835,30]
[324917756,1714415452009,-500.0,0.00043835,30]
[324917757,1714415452019,-500.0,0.00043835,30]
[324917758,1714415452028,-508.58016675,0.00043835,30]
[324917759,1714415452037,-500.0,0.00043835,30]
[324917760,1714415452046,-500.0,0.00043835,30]
[324917761,1714415452057,-500.0,0.00043835,30]
[324917762,1714415452066,-500.0,0.00043835,30]
[324917763,1714415452076,-500.0,0.00043835,30]
[324917764,1714415452085,-815.73,0.00043835,30]
[324917765,1714415452095,-296.55230375,0.00043835,30]
[324917766,1714415452105,-500.0,0.00043835,30]
[324917767,1714415452115,-500.0,0.00043835,30]
[324917768,1714415452124,-500.0,0.00043835,30]
[324917769,1714415452133,-500.0,0.00043835,30]
[324917770,1714415452142,-1051.78,0.00043835,30]
[324917771,1714415452152,-500.0,0.00043835,30]
[324917772,1714415452161,-500.0,0.00043835,30]
[324917773,1714415452170,-500.0,0.00043835,30]
[324917774,1714415452179,-500.0,0.00043835,30]
[324917775,1714415452188,-500.0,0.00043835,30]
[324917776,1714415452198,-551.21,0.00043835,30]
[324917777,1714415452207,-500.0,0.00043835,30]
[324917778,1714415452217,-500.0,0.00043835,30]
[324917779,1714415452227,-509.08478671,0.00043835,30]
[324917780,1714415452236,-500.0,0.00043835,30]
[324917781,1714415452246,-4805.199544,0.00043835,7]
[324917782,1714415452256,-4805.199544,0.00043835,7]
[324917783,1714415452265,-500.0,0.00043835,30]
[324917784,1714415452275,-500.0,0.00043835,30]
[324917785,1714415452284,-500.0,0.00043835,30]
[324917786,1714415452294,-4805.199544,0.00043835,7]
[324917787,1714415452305,-4805.199543,0.00043835,7]
[324917788,1714415452314,-500.0,0.00043835,30]
[324917789,1714415452324,-500.0,0.00043835,30]
[324917790,1714415452333,-151.0,0.00043835,7]
[324917791,1714415452342,-151.0,0.00043835,7]
[324917792,1714415452352,-500.0,0.00043835,30]
[324917793,1714415452361,-500.0,0.00043835,30]
[324917794,1714415452371,-985.25,0.00043835,30]
[324917795,1714415452381,-500.0,0.00043835,30]
[324917796,1714415452390,-500.0,0.00043835,30]
[324917797,1714415452399,-500.0,0.00043835,30]
[324917798,1714415452408,-945.49,0.00043835,30]
[324917799,1714415452417,-500.0,0.00043835,30]
[324917800,1714415452427,-500.0,0.00043835,30]
[324917801,1714415452435,-500.0,0.00043835,30]
[324917802,1714415452445,-550.44,0.00043835,30]
[324917803,1714415452454,-822.140022,0.00043835,7]
[324917804,1714415452464,-822.140022,0.00043835,7]
[324917805,1714415452474,-500.0,0.00043835,30]
[324917806,1714415452482,-392.85182224,0.00043835,30]
[324917807,1714415452491,-502.96620153,0.00043835,30]
[324917808,1714415452501,-822.140022,0.00043835,7]
[324917809,1714415452510,-665.58,0.00043835,30]
[324917810,1714415452519,-822.140013,0.00043835,7]
[324917811,1714415452528,-154.82968734,0.00043835,30]
[324917812,1714415452538,-500.0,0.00043835,30]
[324917813,1714415452547,-500.0,0.00043835,30]
[324917814,1714415452558,-500.0,0.00043835,30]
[324917815,1714415452567,-500.0,0.00043835,30]
[324917816,1714415452577,-500.0,0.00043835,30]
[324917817,1714415452586,-564.21,0.00043835,30]
[324917818,1714415452595,-500.0,0.00043835,30]
[324917819,1714415452611,-500.0,0.00043835,30]
[324917820,1714415452620,-500.0,0.00043835,30]
[324917821,1714415452630,-500.0,0.00043835,30]
[324917822,1714415452639,-581.46,0.00043835,30]
[324917823,1714415452650,-554.47489093,0.00043835,30]
[324917824,1714415452659,-500.0,0.00043835,30]
[324917825,1714415452668,-500.0,0.00043835,30]
[324917826,1714415452677,-500.0,0.00043835,30]
[324917827,1714415452687,-500.0,0.00043835,30]
[324917828,1714415452696,-500.0,0.00043835,30]
[324917829,1714415452707,-500.0,0.00043835,30]
[324917830,1714415452717,-500.0,0.00043835,30]
[324917831,1714415452726,-500.0,0.00043835,30]
[324917832,1714415452735,-500.0,0.00043835,30]
[324917833,1714415452744,-500.0,0.00043835,30]
[324917834,1714415452756,-500.0,0.00043835,30]
[324917835,1714415452766,-500.0,0.00043835,30]
[324917836,1714415452775,-628.9,0.00043835,30]
[324917837,1714415452784,-500.0,0.00043835,30]
[324917838,1714415452793,-500.0,0.00043835,30]
[324917839,1714415452802,-500.0,0.00043835,30]
[324917840,1714415452813,-681.31,0.00043835,30]
[324917841,1714415452822,-500.0,0.00043835,30]
[324917842,1714415452831,-593.39466437,0.00043835,30]
[324917843,1714415452840,-500.0,0.00043835,30]
[324917844,1714415452850,-500.0,0.00043835,30]
[324917845,1714415452859,-500.0,0.00043835,30]
[324917846,1714415452971,-500.0,0.00043835,30]
[324917847,1714415452981,-606.01796656,0.00043835,30]
[324917848,1714415452990,-500.0,0.00043835,30]
[324917849,1714415452999,-500.0,0.00043835,30]
[324917850,1714415453009,-500.0,0.00043835,30]
[324917851,1714415453018,-396.90848059,0.00043835,30]
[324917852,1714415453027,-500.0,0.00043835,30]
[324917853,1714415453037,-500.0,0.00043835,30]
[324917854,1714415453047,-726.4,0.00043835,120]
[324917855,1714415453056,-500.0,0.00043835,30]
[324917856,1714415453065,-507.51907546,0.00043835,30]
[324917857,1714415453075,-500.0,0.00043835,30]
[324917858,1714415453084,-504.38239713,0.00043835,30]
[324917859,1714415453093,-507.32802336,0.00043835,30]
[324917860,1714415453102,-500.0,0.00043835,30]
[324917861,1714415453111,-500.0,0.00043835,30]
[324917862,1714415453121,-500.0,0.00043835,30]
[324917863,1714415453130,-500.0,0.00043835,30]
[324917864,1714415453139,-224.59286858,0.00043835,30]
[324917865,1714415453150,-631.97,0.00043835,30]
[324917866,1714415453159,-500.0,0.00043835,30]
[324917867,1714415453169,-500.0,0.00043835,30]
[324917868,1714415453179,-500.0,0.00043835,30]
[324917869,1714415453189,-500.0,0.00043835,30]
[324917870,1714415453199,-500.0,0.00043835,30]
[324917871,1714415453208,-500.0,0.00043835,30]
[324917872,1714415453217,-500.0,0.00043835,30]
[324917873,1714415453227,-850.58,0.00043835,30]
[324917874,1714415453236,-500.0,0.00043835,30]
[324917875,1714415453245,-500.0,0.00043835,30]
[324917876,1714415453255,-500.0,0.00043835,30]
[324917877,1714415453264,-500.0,0.00043835,30]
[324917878,1714415453273,-500.0,0.00043835,30]
[324917879,1714415453283,-500.0,0.00043835,30]
[324917880,1714415453292,-500.0,0.00043835,30]
[324917881,1714415453301,-500.0,0.00043835,30]
[324917882,1714415453313,-500.0,0.00043835,30]
[324917883,1714415453323,-500.0,0.00043835,30]
[324917884,1714415453332,-500.0,0.00043835,30]
[324917885,1714415453341,-500.0,0.00043835,30]
[324917886,1714415453350,-500.0,0.00043835,30]
[324917887,1714415453360,-500.0,0.00043835,30]
[324917888,1714415453369,-500.0,0.00043835,30]
[324917889,1714415453379,-500.0,0.00043835,30]
[324917890,1714415453388,-500.0,0.00043835,30]
[324917891,1714415453399,-500.0,0.00043835,30]
[324917892,1714415453408,-1013.46,0.00043835,30]
[324917893,1714415453419,-500.0,0.00043835,30]
[324917894,1714415453429,-500.0,0.00043835,30]
[324917895,1714415453439,-500.0,0.00043835,30]
[324917896,1714415453449,-500.0,0.00043835,30]
[324917897,1714415453459,-500.0,0.00043835,30]
[324917898,1714415453468,-500.0,0.00043835,30]
[324917899,1714415453478,-454.03644147,0.00043835,30]
[324917900,1714415453486,-510.93480759,0.00043835,30]
[324917901,1714415453496,-500.0,0.00043835,30]
[324917902,1714415453506,-500.0,0.00043835,30]
[324917903,1714415453516,-402.56689138,0.00043836,30]
[324917904,1714415453526,-150.5,0.0004397,35]
[324917905,1714415453535,-150.5,0.0004397,7]
[324917906,1714415453544,-150.5,0.0004398,35]
[324917907,1714415453554,-150.5,0.0004398,7]
[324917908,1714415453564,-150.5,0.0004399,35]
[324917909,1714415453574,-150.5,0.0004399,7]
[324917910,1714415453583,-5000.0,0.00044,120]
[324917911,1714415453592,-38081.38490287,0.00044,120]
[324917912,1714415453837,-323.35,0.00044,120]
[324917913,1714415454044,-8377.59175511,0.00015999,2]
[324917920,1714415498261,154.78330338,9.999e-05,2]
[324917927,1714415859400,583.51833665,9.999e-05,2]
[324917931,1714416282967,583.51833665,9.999e-05,2]
[324917932,1714416313588,520.45497619,9.999e-05,2]
[324917934,1714416405166,-217.78959795,0.00013597,2]
[324917935,1714416430103,-339.0449282,0.00013597,2]
[324918021,1714416638342,-1264.1253211,0.00012724,2]
[324918022,1714416638353,-468.12640148,0.00012724,2]
[324918023,1714416638365,-23167.74827742,0.00012724,2]
[324918024,1714416638374,-26.6838105,0.00013597,2]
[324918025,1714416638383,-280.75978917,0.00013597,2]
[324918026,1714416638392,-1576.30653976,0.00013597,2]
[324918027,1714416638401,-363.95014905,0.00013597,2]
[324918028,1714416638410,-161.65703656,0.00013598,2]
[324918029,1714416638419,-2279.70863382,0.00013599,2]
[324918030,1714416638428,-154.78330338,0.00013695,2]
[324918031,1714416638437,-15672.89435023,0.00013695,2]
[324918032,1714416638446,-300.0,0.00013696,2]
[324918033,1714416638603,-300.0,0.00013696,2]
[324918034,1714416638614,-10214.96236093,0.00013698,2]
[324918035,1714416638624,-166.666666,0.00013699,2]
[324918036,1714416638634,-479.522356,0.00014005,2]
[324918037,1714416638643,-161.65703653,0.00014721,2]
[324918039,1714416638652,-420.0,0.00015009,2]
[324918041,1714416638661,-420.0,0.00015066,2]
[324918043,1714416638671,-161.65703653,0.00015844,2]
[324918045,1714416638680,-7199.54648169,0.00015997,2]
[324918047,1714416638689,-157.69768027,0.00015997,2]
[324918049,1714416638698,-163.495485,0.00015997,2]
[324918051,1714416638707,-408.87824963,0.00015997,2]
[324918053,1714416638718,-1681.33721149,0.00015997,2]
[324918055,1714416638727,-300.56246655,0.00015997,2]
[324918057,1714416638736,-308.43832005,0.00015997,2]
[324918059,1714416638746,-206.04553097,0.00015997,2]
[324918061,1714416638755,-352.27539728,0.00015997,2]
[324918063,1714416638764,-514.23297925,0.00016,2]
[324918065,1714416638774,-587.0,0.00016449,2]
[324918067,1714416638783,-587.0,0.00016572,2]
[324918069,1714416638792,-161.65703653,0.00016967,2]
[324918071,1714416638802,-498.57956333,0.00017997,2]
[324918073,1714416638810,-161.65703653,0.00018089,2]
[324918075,1714416638820,-823.0,0.00018229,2]
[324918077,1714416638829,-430.89216403,0.000189,2]
[324918079,1714416638838,-155.50280679,0.00019178,2]
[324918081,1714416638847,-160.579336,0.00019178,2]
[324918083,1714416638856,-161.65703653,0.00019212,2]
[324918085,1714416638866,-11803.44784804,0.000193,2]
[324918087,1714416638875,-2000.0,0.00019899,2]
[324918089,1714416638884,-722.96665172,0.000199,2]
[324918091,1714416638894,-1759.95067725,0.00019997,2]
[324918093,1714416638903,-603.57234398,0.00019998,2]
[324918095,1714416638912,-156.5246774,0.00019999,2]
[324918097,1714416638921,-51940.55020478,0.00019999,2]
[324918099,1714416638931,-5460.61782475,0.0002,2]
[324918101,1714416638940,-376.09115439,0.0002,2]
[324918103,1714416638949,-67415.61392424,0.0002,2]
[324918105,1714416638958,-1152.0,0.00020052,2]
[324918107,1714416638967,-161.65703653,0.00020335,2]
[324918109,1714416638978,-2279.70863382,0.00020481,2]
[324918111,1714416638987,-159.19819518,0.00022,2]
[324918112,1714416638997,-296.0,0.00022058,2]
[324918114,1714416639008,-425.330147,0.00022466,2]
[324918116,1714416639017,-158.392944,0.00022466,2]
[324918118,1714416639027,-570.503541,0.00022466,2]
[324918120,1714416639036,-714.0781204,0.00023,2]
[324918122,1714416639047,-623.10844371,0.00023688,2]
[324918124,1714416639056,-430.89216403,0.000239,2]
[324918126,1714416639066,-922.61618594,0.00024,2]
[324918128,1714416639076,-500.0,0.00024657,2]
[324918130,1714416639086,-204.57520726,0.00024712,2]
[324918132,1714416639095,-620.15542219,0.00024873,2]
[324918134,1714416639104,-154.86062544,0.00025,2]
[324918136,1714416639114,-158.9494119,0.0002516,2]
[324918138,1714416639123,-246.59353628,0.00025371,2]
[324918140,1714416639132,-246.59353628,0.00025531,2]
[324918142,1714416639140,-151.47429952,0.00025553,2]
[324918144,1714416639150,-722.96665169,0.00025859,2]
[324918146,1714416639159,-2818.00037974,0.00026,9]
[324918148,1714416639168,-158.9494119,0.00026029,2]
[324918150,1714416639178,-246.59353628,0.00026077,2]
[324918152,1714416639187,-620.00777111,0.00026116,2]
[324918154,1714416639196,-246.59353628,0.00026139,2]
[324918156,1714416639205,-246.59353628,0.00026224,2]
[324918158,1714416639214,-8527.63031331,0.00027,2]
[324918160,1714416639227,-153.79833288,0.00027107,2]
[324918162,1714416639236,-156.18617836,0.00027118,2]
[324918164,1714416639245,-151.47429952,0.00027171,2]
[324918166,1714416639255,-2279.70863382,0.00027362,3]
[324918168,1714416639264,-166.666666,0.00027397,2]
[324918170,1714416639274,-151.0,0.00027585,2]
[324918172,1714416639283,-151.47429952,0.00027586,2]
[324918174,1714416639292,-246.59353628,0.0002764,2]
[324918176,1714416639302,-153.79833288,0.00027698,2]
[324918178,1714416639311,-152.41297352,0.0002786,2]
[324918181,1714416639321,-508.83988954,0.00028,2]
[324918182,1714416639330,-166.666666,0.00028038,2]
[324918185,1714416639339,-151.47429952,0.00028139,2]
[324918186,1714416639348,-158.9494119,0.00028225,2]
[324918189,1714416639358,-158.9494119,0.00028401,2]
[324918191,1714416639367,-158.9494119,0.00028481,2]
[324918193,1714416639376,-425.330147,0.00028493,2]
[324918194,1714416639385,-168.373609,0.00028493,2]
[324918197,1714416639394,-168.373609,0.00028493,31]
[324918199,1714416639403,-168.373609,0.00028493,61]
[324918201,1714416639412,-168.373609,0.00028493,90]
[324918203,1714416639422,-168.373609,0.00028493,120]
[324918205,1714416639431,-570.503541,0.00028493,2]
[324918207,1714416639440,-166.666666,0.00028679,2]
[324918209,1714416639449,-430.89216403,0.000289,2]
[324918211,1714416639458,-246.59353628,0.00028923,2]
[324918213,1714416639470,-152.41297352,0.00029048,2]
[324918215,1714416639479,-151.47429952,0.00029241,2]
[324918217,1714416639489,-166.666666,0.00029321,2]
[324918219,1714416639498,-151.47429952,0.0002948,2]
[324918221,1714416639507,-246.59353628,0.00029481,2]
[324918223,1714416639517,-246.59353628,0.00029809,2]
[324918225,1714416639526,-246.59353628,0.00029948,2]
[324918227,1714416639535,-166.666666,0.00029962,2]
[324918229,1714416639544,-154.78330338,0.0003,4]
[324918231,1714416639554,-154.78330338,0.0003,4]
[324918233,1714416639563,-154.78330338,0.0003,4]
[324918235,1714416639572,-231.0,0.0003,2]
[324918237,1714416639582,-151.47429952,0.00030221,7]
[324918239,1714416639591,-246.59353628,0.00030314,7]
[324918241,1714416639600,-158.9494119,0.00030331,7]
[324918243,1714416639609,-246.59353628,0.00030539,7]
[324918245,1714416639618,-166.666666,0.00030603,2]
[324918247,1714416639627,-246.59353628,0.00030809,7]
[324918249,1714416639636,-158.9494119,0.00031061,7]
[324918251,1714416639646,-158.9494119,0.0003112,7]
[324918253,1714416639656,-246.59353628,0.00031213,7]
[324918255,1714416639665,-151.47429952,0.00031313,7]
[324918257,1714416639674,-158.9494119,0.00031543,7]
[324918259,1714416639684,-246.59353628,0.000316,7]
[324918261,1714416639694,-722.96665169,0.00031818,2]
[324918263,1714416639703,-246.59353628,0.00031844,7]
[324918265,1714416639713,-153.34957969,0.00031882,2]
[324918267,1714416639723,-153.34957969,0.00031882,2]
[324918269,1714416639733,-153.34957969,0.00031882,2]
[324918271,1714416639743,-153.34957969,0.00031882,2]
[324918273,1714416639752,-977.55062889,0.00031882,2]
[324918275,1714416639761,-246.59353628,0.00031972,7]
[324918277,1714416639770,-638.7649893,0.00032,4]
[324918279,1714416639779,-158.9494119,0.00032043,7]
[324918281,1714416639789,-246.59353628,0.00032273,7]
[324918283,1714416639798,-246.59353628,0.0003253,7]
[324918285,1714416639808,-152.41297352,0.00032719,7]
[324918287,1714416639817,-152.41297352,0.00032785,7]
[324918289,1714416639826,-565.05492021,0.00032876,10]
[324918291,1714416639835,-152.41297352,0.00032922,7]
[324918293,1714416639844,-246.59353628,0.00032932,7]
[324918295,1714416639853,-231.0,0.00033,2]
[324918297,1714416639863,-231.0,0.00033,2]
[324918299,1714416639872,-152.41297352,0.00033055,7]
[324918301,1714416639881,-158.9494119,0.00033348,7]
[324918303,1714416639891,-152.41297352,0.0003359,7]
[324918305,1714416639900,-152.41297352,0.00033663,7]
[324918307,1714416639909,-152.41297352,0.00033678,7]
[324918308,1714416639918,-246.59353628,0.00033681,7]